fUST/lending_fUST_20260604
["ID","MTS","AMOUNT","RATE_DAILY","PERIOD"]
[424077597,1780587039000,-934.69,0.00013698,2]
[424077586,1780587039000,-934.69,0.00013698,2]
[424077590,1780587039000,-934.69,0.00013698,2]
[424077601,1780587039000,-934.69,0.00013698,2]
[424077608,1780587039000,-500.0,0.00013698,2]
[424078135,1780587043000,-724.39,0.00013698,2]
[424078122,1780587043000,-348.0,0.00011947,2]
[424078124,1780587043000,-251.44546793,0.00011947,2]
[424078137,1780587043000,-724.39,0.00013698,2]
[424078131,1780587043000,-724.39,0.00013698,2]
[424078133,1780587043000,-724.39,0.00013698,2]
[424078128,1780587043000,-724.39,0.00013698,2]
[424078129,1780587043000,-724.39,0.00013698,2]
[424078126,1780587043000,-606.33705503,0.00013698,2]
[424078138,1780587044000,-724.39,0.00013698,2]
[424078140,1780587044000,-724.39,0.00013698,2]
[424078142,1780587044000,-724.39,0.00013698,2]
[424078144,1780587044000,-724.39,0.00013698,2]
[424078147,1780587044000,-724.39,0.00013698,2]
[424078146,1780587044000,-724.39,0.00013698,2]
[424078149,1780587044000,-500.0,0.00013698,2]
[424078151,1780587044000,-724.39,0.00013698,2]
[424078162,1780587044000,-501.65440776,0.00013698,2]
[424078163,1780587044000,-696.95,0.00013698,2]
[424078165,1780587044000,-506.86344055,0.00013698,2]
[424078166,1780587044000,-500.0,0.00013698,2]
[424078182,1780587044000,-288.94962875,0.00013698,2]
[424078180,1780587044000,-500.0,0.00013698,2]
[424078168,1780587044000,-500.0,0.00013698,2]
[424078172,1780587044000,-500.0,0.00013698,2]
[424078170,1780587044000,-500.0,0.00013698,2]
[424078174,1780587044000,-500.0,0.00013698,2]
[424078158,1780587044000,-500.0,0.00013698,2]
[424078160,1780587044000,-500.0,0.00013698,2]
[424078156,1780587044000,-500.0,0.00013698,2]
[424078155,1780587044000,-500.0,0.00013698,2]
[424078153,1780587044000,-530.73,0.00013698,2]
[424078437,1780587046000,-500.0,0.00013698,2]
[424078427,1780587046000,-1415.0,0.00012322,2]
[424078429,1780587046000,-352.81772204,0.00013698,2]
[424078441,1780587046000,-500.0,0.00013698,2]
[424078443,1780587046000,-500.0,0.00013698,2]
[424078431,1780587046000,-500.0,0.00013698,2]
[424078445,1780587046000,-500.0,0.00013698,2]
[424078433,1780587046000,-500.0,0.00013698,2]
[424078435,1780587046000,-500.0,0.00013698,2]
[424078447,1780587046000,-500.0,0.00013698,2]
[424078449,1780587046000,-500.0,0.00013698,2]
[424078451,1780587046000,-492.36721368,0.00013698,2]
[424078439,1780587046000,-500.0,0.00013698,2]
[424089510,1780588232000,-1551.55710422,0.00011484,2]
[424089504,1780588232000,-840.01138817,0.00011255,2]
[424089502,1780588232000,-4159.98861183,0.00011255,2]
[424089508,1780588232000,-1038.20769838,0.00011484,2]
[424089506,1780588232000,-1843.32625056,0.00011369,2]
[424089754,1780588240000,-2410.2351974,0.00011484,2]
[424089758,1780588240000,-1200.0,0.00011999,2]
[424089759,1780588240000,-500.0,0.00012,2]
[424089753,1780588240000,-1066.78080053,0.00011369,2]
[424089763,1780588240000,-567.67391769,0.00012279,2]
[424089766,1780588240000,-1122.0,0.0001232,2]
[424089772,1780588240000,-300.0,0.00012321,2]
[424089771,1780588240000,-300.0,0.0001232,2]
[424089761,1780588240000,-322.005,0.00012078,2]
[424089811,1780588241000,-300.0,0.00012567,2]
[424089801,1780588241000,-300.0,0.00012567,2]
[424089803,1780588241000,-300.0,0.00012567,2]
[424089798,1780588241000,-176.2,0.00012522,2]
[424089795,1780588241000,-176.2,0.00012522,2]
[424089788,1780588241000,-176.2,0.00012518,2]
[424089792,1780588241000,-176.2,0.0001252,2]
[424089790,1780588241000,-176.2,0.0001252,2]
[424089787,1780588241000,-176.2,0.00012518,2]
[424089785,1780588241000,-444.0,0.00012322,2]
[424089781,1780588241000,-2206.0,0.00012322,2]
[424089777,1780588241000,-3631.0,0.00012322,2]
[424089776,1780588241000,-1837.0,0.00012322,2]
[424089774,1780588241000,-300.0,0.00012321,2]
[424089816,1780588241000,-300.0,0.00012567,2]
[424089814,1780588241000,-300.0,0.00012567,2]
[424089838,1780588241000,-600.0,0.00012817,2]
[424089805,1780588241000,-300.0,0.00012567,2]
[424089808,1780588241000,-300.0,0.00012567,2]
[424089852,1780588241000,-264.41034762,0.00013243,2]
[424089854,1780588241000,-46859.36817408,0.00013298,2]
[424089849,1780588241000,-1680.0,0.00013199,2]
[424089846,1780588241000,-500.0,0.00012999,2]
[424089843,1780588241000,-2971.3097916,0.00012984,2]
[424089841,1780588241000,-828.0,0.00012893,2]
[424089848,1780588241000,-195880.20610164,0.00013013,2]
[424089833,1780588241000,-300.0,0.00012567,2]
[424089826,1780588241000,-300.0,0.00012567,2]
[424089830,1780588241000,-300.0,0.00012567,2]
[424089824,1780588241000,-300.0,0.00012567,2]
[424089822,1780588241000,-300.0,0.00012567,2]
[424089828,1780588241000,-300.0,0.00012567,2]
[424089819,1780588241000,-300.0,0.00012567,2]
[424089836,1780588241000,-300.0,0.00012567,2]
[424090214,1780588244000,-500.0,0.00013698,2]
[424090222,1780588244000,-500.0,0.00013698,2]
[424090202,1780588244000,-525.57922531,0.00013698,2]
[424090204,1780588244000,-1311.3977,0.00013698,2]
[424090209,1780588244000,-500.0,0.00013698,2]
[424090220,1780588244000,-500.0,0.00013698,2]
[424090216,1780588244000,-500.0,0.00013698,2]
[424090201,1780588244000,-158.154,0.00013697,2]
[424090185,1780588244000,-29355.29027603,0.00013298,2]
[424090199,1780588244000,-300.0,0.00013521,2]
[424090189,1780588244000,-5000.0,0.00013328,2]
[424090197,1780588244000,-420.0,0.0001352,2]
[424090191,1780588244000,-5000.0,0.00013328,2]
[424090195,1780588244000,-5000.0,0.00013328,2]
[424090187,1780588244000,-5000.0,0.00013328,2]
[424090213,1780588244000,-500.0,0.00013698,2]
[424090193,1780588244000,-5000.0,0.00013328,2]
[424090211,1780588244000,-500.0,0.00013698,2]
[424090218,1780588244000,-500.0,0.00013698,2]
[424090224,1780588244000,-500.0,0.00013698,2]
[424090206,1780588244000,-638.73649369,0.00013698,2]
[424090259,1780588244000,-500.0,0.00013698,2]
[424090257,1780588244000,-500.0,0.00013698,2]
[424090261,1780588244000,-1000.0,0.00013698,2]
[424090253,1780588244000,-500.0,0.00013698,2]
[424090251,1780588244000,-500.0,0.00013698,2]
[424090245,1780588244000,-500.0,0.00013698,2]
[424090241,1780588244000,-500.0,0.00013698,2]
[424090239,1780588244000,-500.0,0.00013698,2]
[424090255,1780588244000,-966.88,0.00013698,2]
[424090236,1780588244000,-500.0,0.00013698,2]
[424090247,1780588244000,-500.0,0.00013698,2]
[424090249,1780588244000,-500.0,0.00013698,2]
[424090234,1780588244000,-500.0,0.00013698,2]
[424090232,1780588244000,-500.0,0.00013698,2]
[424090230,1780588244000,-500.0,0.00013698,2]
[424090228,1780588244000,-500.0,0.00013698,2]
[424090243,1780588244000,-500.0,0.00013698,2]
[424090226,1780588244000,-500.0,0.00013698,2]
[424090312,1780588245000,-500.0,0.00013698,2]
[424090314,1780588245000,-500.0,0.00013698,2]
[424090318,1780588245000,-500.0,0.00013698,2]
[424090313,1780588245000,-500.0,0.00013698,2]
[424090315,1780588245000,-500.0,0.00013698,2]
[424090310,1780588245000,-302.89177779,0.00013698,2]
[424090317,1780588245000,-558.28,0.00013698,2]
[424090322,1780588245000,-500.0,0.00013698,2]
[424090320,1780588245000,-500.0,0.00013698,2]
[424090323,1780588245000,-500.0,0.00013698,2]
[424090321,1780588245000,-938.27,0.00013698,2]
[424090316,1780588245000,-500.0,0.00013698,2]
[424090325,1780588245000,-1057.71,0.00013698,2]
[424090337,1780588245000,-500.0,0.00013698,2]
[424090331,1780588245000,-500.0,0.00013698,2]
[424090327,1780588245000,-686.36,0.00013698,2]
[424090338,1780588245000,-373.83723434,0.00013698,2]
[424090329,1780588245000,-500.0,0.00013698,2]
[424090324,1780588245000,-500.0,0.00013698,2]
[424090332,1780588245000,-500.0,0.00013698,2]
[424090333,1780588245000,-500.0,0.00013698,2]
[424090334,1780588245000,-500.0,0.00013698,2]
[424090330,1780588245000,-500.0,0.00013698,2]
[424090335,1780588245000,-501.87343911,0.00013698,2]
[424090340,1780588245000,-587.01,0.00013698,2]
[424090352,1780588245000,-500.0,0.00013698,2]
[424090319,1780588245000,-500.0,0.00013698,2]
[424090326,1780588245000,-500.0,0.00013698,2]
[424090311,1780588245000,-500.0,0.00013698,2]
[424090264,1780588245000,-500.0,0.00013698,2]
[424090308,1780588245000,-314.60331611,0.00013698,2]
[424090267,1780588245000,-500.0,0.00013698,2]
[424090270,1780588245000,-745.25,0.00013698,2]
[424090266,1780588245000,-500.0,0.00013698,2]
[424090342,1780588245000,-500.0,0.00013698,2]
[424090273,1780588245000,-500.0,0.00013698,2]
[424090275,1780588245000,-500.0,0.00013698,2]
[424090277,1780588245000,-500.0,0.00013698,2]
[424090280,1780588245000,-500.0,0.00013698,2]
[424090282,1780588245000,-500.0,0.00013698,2]
[424090279,1780588245000,-500.0,0.00013698,2]
[424090284,1780588245000,-501.00731802,0.00013698,2]
[424090286,1780588245000,-500.0,0.00013698,2]
[424090288,1780588245000,-501.17868244,0.00013698,2]
[424090298,1780588245000,-500.0,0.00013698,2]
[424090290,1780588245000,-500.0,0.00013698,2]
[424090292,1780588245000,-500.0,0.00013698,2]
[424090297,1780588245000,-500.0,0.00013698,2]
[424090296,1780588245000,-500.0,0.00013698,2]
[424090294,1780588245000,-532.79,0.00013698,2]
[424090295,1780588245000,-703.19,0.00013698,2]
[424090299,1780588245000,-204.19900581,0.00013698,2]
[424090303,1780588245000,-500.0,0.00013698,2]
[424090301,1780588245000,-500.0,0.00013698,2]
[424090300,1780588245000,-240.34090277,0.00013698,2]
[424090305,1780588245000,-300.83709404,0.00013698,2]
[424090302,1780588245000,-500.0,0.00013698,2]
[424090304,1780588245000,-500.0,0.00013698,2]
[424090307,1780588245000,-500.0,0.00013698,2]
[424090309,1780588245000,-500.0,0.00013698,2]
[424090306,1780588245000,-500.0,0.00013698,2]
[424090346,1780588245000,-502.86048221,0.00013698,2]
[424090351,1780588245000,-500.0,0.00013698,2]
[424090350,1780588245000,-500.0,0.00013698,2]
[424090391,1780588245000,-500.0,0.00013698,2]
[424090382,1780588245000,-500.0,0.00013698,2]
[424090390,1780588245000,-500.0,0.00013698,2]
[424090381,1780588245000,-500.0,0.00013698,2]
[424090380,1780588245000,-500.0,0.00013698,2]
[424090384,1780588245000,-500.0,0.00013698,2]
[424090389,1780588245000,-500.0,0.00013698,2]
[424090385,1780588245000,-500.0,0.00013698,2]
[424090388,1780588245000,-500.0,0.00013698,2]
[424090386,1780588245000,-500.0,0.00013698,2]
[424090387,1780588245000,-500.0,0.00013698,2]
[424090393,1780588245000,-500.0,0.00013698,2]
[424090403,1780588245000,-500.0,0.00013698,2]
[424090383,1780588245000,-500.0,0.00013698,2]
[424090404,1780588245000,-468.34883701,0.00013698,2]
[424090395,1780588245000,-500.0,0.00013698,2]
[424090399,1780588245000,-500.0,0.00013698,2]
[424090398,1780588245000,-500.0,0.00013698,2]
[424090396,1780588245000,-500.0,0.00013698,2]
[424090401,1780588245000,-500.0,0.00013698,2]
[424090400,1780588245000,-500.0,0.00013698,2]
[424090397,1780588245000,-500.0,0.00013698,2]
[424090392,1780588245000,-500.0,0.00013698,2]
[424090402,1780588245000,-500.0,0.00013698,2]
[424090405,1780588245000,-500.0,0.00013698,2]
[424090406,1780588245000,-500.0,0.00013698,2]
[424090407,1780588245000,-432.1979072,0.00013698,2]
[424090344,1780588245000,-500.0,0.00013698,2]
[424090394,1780588245000,-500.0,0.00013698,2]
[424090379,1780588245000,-500.0,0.00013698,2]
[424090408,1780588245000,-500.0,0.00013698,2]
[424090371,1780588245000,-500.0,0.00013698,2]
[424090370,1780588245000,-500.0,0.00013698,2]
[424090347,1780588245000,-500.0,0.00013698,2]
[424090343,1780588245000,-679.82,0.00013698,2]
[424090341,1780588245000,-500.0,0.00013698,2]
[424090348,1780588245000,-500.0,0.00013698,2]
[424090353,1780588245000,-500.0,0.00013698,2]
[424090354,1780588245000,-523.59141838,0.00013698,2]
[424090355,1780588245000,-568.01736638,0.00013698,2]
[424090362,1780588245000,-393.34870616,0.00013698,2]
[424090364,1780588245000,-500.0,0.00013698,2]
[424090361,1780588245000,-894.15,0.00013698,2]
[424090365,1780588245000,-500.0,0.00013698,2]
[424090363,1780588245000,-500.0,0.00013698,2]
[424090358,1780588245000,-2047.44,0.00013698,2]
[424090345,1780588245000,-500.0,0.00013698,2]
[424090357,1780588245000,-500.0,0.00013698,2]
[424090372,1780588245000,-500.0,0.00013698,2]
[424090369,1780588245000,-151.0,0.00013698,2]
[424090368,1780588245000,-500.0,0.00013698,2]
[424090366,1780588245000,-500.0,0.00013698,2]
[424090359,1780588245000,-500.0,0.00013698,2]
[424090378,1780588245000,-500.0,0.00013698,2]
[424090376,1780588245000,-547.28,0.00013698,2]
[424090374,1780588245000,-500.0,0.00013698,2]
[424090375,1780588245000,-500.0,0.00013698,2]
[424090373,1780588245000,-500.0,0.00013698,2]
[424090367,1780588245000,-500.0,0.00013698,2]
[424090360,1780588245000,-500.0,0.00013698,2]
[424090356,1780588245000,-500.0,0.00013698,2]
[424090377,1780588245000,-500.0,0.00013698,2]
[424090495,1780588246000,-500.0,0.00013698,2]
[424090493,1780588246000,-501.49856346,0.00013698,2]
[424090491,1780588246000,-1159.54,0.00013698,2]
[424090488,1780588246000,-503.93139889,0.00013698,2]
[424090490,1780588246000,-539.99392753,0.00013698,2]
[424090467,1780588246000,-502.78289843,0.00013698,2]
[424090486,1780588246000,-500.0,0.00013698,2]
[424090481,1780588246000,-500.0,0.00013698,2]
[424090473,1780588246000,-500.0,0.00013698,2]
[424090479,1780588246000,-500.0,0.00013698,2]
[424090471,1780588246000,-539.78,0.00013698,2]
[424090484,1780588246000,-507.76929572,0.00013698,2]
[424090497,1780588246000,-500.0,0.00013698,2]
[424090505,1780588246000,-500.0,0.00013698,2]
[424090501,1780588246000,-2759.97,0.00013698,2]
[424090507,1780588246000,-500.0,0.00013698,2]
[424090513,1780588246000,-500.0,0.00013698,2]
[424090509,1780588246000,-500.0,0.00013698,2]
[424090515,1780588246000,-500.0,0.00013698,2]
[424090503,1780588246000,-500.0,0.00013698,2]
[424090511,1780588246000,-500.0,0.00013698,2]
[424090529,1780588246000,-500.0,0.00013698,2]
[424090517,1780588246000,-500.0,0.00013698,2]
[424090531,1780588246000,-544.88,0.00013698,2]
[424090525,1780588246000,-500.0,0.00013698,2]
[424090519,1780588246000,-500.0,0.00013698,2]
[424090469,1780588246000,-500.0,0.00013698,2]
[424090499,1780588246000,-500.0,0.00013698,2]
[424090533,1780588246000,-500.0,0.00013698,2]
[424090424,1780588246000,-500.0,0.00013698,2]
[424090475,1780588246000,-500.0,0.00013698,2]
[424090413,1780588246000,-500.0,0.00013698,2]
[424090409,1780588246000,-592.73,0.00013698,2]
[424090411,1780588246000,-1198.47,0.00013698,2]
[424090410,1780588246000,-500.0,0.00013698,2]
[424090415,1780588246000,-502.37653891,0.00013698,2]
[424090426,1780588246000,-500.0,0.00013698,2]
[424090428,1780588246000,-500.0,0.00013698,2]
[424090432,1780588246000,-500.0,0.00013698,2]
[424090430,1780588246000,-500.0,0.00013698,2]
[424090434,1780588246000,-500.0,0.00013698,2]
[424090436,1780588246000,-500.0,0.00013698,2]
[424090438,1780588246000,-500.0,0.00013698,2]
[424090420,1780588246000,-500.0,0.00013698,2]
[424090418,1780588246000,-500.0,0.00013698,2]
[424090422,1780588246000,-500.0,0.00013698,2]
[424090440,1780588246000,-500.0,0.00013698,2]
[424090442,1780588246000,-500.0,0.00013698,2]
[424090444,1780588246000,-500.0,0.00013698,2]
[424090446,1780588246000,-500.0,0.00013698,2]
[424090450,1780588246000,-500.0,0.00013698,2]
[424090456,1780588246000,-500.0,0.00013698,2]
[424090459,1780588246000,-500.0,0.00013698,2]
[424090448,1780588246000,-677.37,0.00013698,2]
[424090452,1780588246000,-500.0,0.00013698,2]
[424090454,1780588246000,-500.0,0.00013698,2]
[424090461,1780588246000,-849.48,0.00013698,2]
[424090463,1780588246000,-500.0,0.00013698,2]
[424090465,1780588246000,-500.0,0.00013698,2]
[424090523,1780588246000,-500.0,0.00013698,2]
[424090477,1780588246000,-500.0,0.00013698,2]
[424090521,1780588246000,-1224.1,0.00013698,2]
[424090610,1780588246000,-155.20735119,0.00013698,2]
[424090612,1780588246000,-2590.98,0.00013698,2]
[424090598,1780588246000,-500.0,0.00013698,2]
[424090614,1780588246000,-2664.81,0.00013698,2]
[424090602,1780588246000,-522.83,0.00013698,2]
[424090600,1780588246000,-500.0,0.00013698,2]
[424090616,1780588246000,-501.7723965,0.00013698,2]
[424090604,1780588246000,-500.0,0.00013698,2]
[424090621,1780588246000,-500.0,0.00013698,2]
[424090606,1780588246000,-500.0,0.00013698,2]
[424090618,1780588246000,-504.40966023,0.00013698,2]
[424090608,1780588246000,-3019.05,0.00013698,2]
[424090623,1780588246000,-500.0,0.00013698,2]
[424090633,1780588246000,-500.0,0.00013698,2]
[424090625,1780588246000,-500.0,0.00013698,2]
[424090631,1780588246000,-500.0,0.00013698,2]
[424090639,1780588246000,-534.95916653,0.00013698,2]
[424090641,1780588246000,-500.0,0.00013698,2]
[424090635,1780588246000,-589.69,0.00013698,2]
[424090627,1780588246000,-500.0,0.00013698,2]
[424090637,1780588246000,-500.46557642,0.00013698,2]
[424090643,1780588246000,-500.0,0.00013698,2]
[424090645,1780588246000,-500.0,0.00013698,2]
[424090646,1780588246000,-500.0,0.00013698,2]
[424090650,1780588246000,-500.0,0.00013698,2]
[424090649,1780588246000,-501.86904534,0.00013698,2]
[424090535,1780588246000,-506.44252314,0.00013698,2]
[424090593,1780588246000,-500.0,0.00013698,2]
[424090596,1780588246000,-500.0,0.00013698,2]
[424090629,1780588246000,-500.0,0.00013698,2]
[424090591,1780588246000,-500.0,0.00013698,2]
[424090594,1780588246000,-500.0,0.00013698,2]
[424090537,1780588246000,-500.0,0.00013698,2]
[424090541,1780588246000,-500.0,0.00013698,2]
[424090527,1780588246000,-2576.32,0.00013698,2]
[424090539,1780588246000,-667.91,0.00013698,2]
[424090544,1780588246000,-1256.45,0.00013698,2]
[424090546,1780588246000,-500.0,0.00013698,2]
[424090548,1780588246000,-500.0,0.00013698,2]
[424090558,1780588246000,-500.0,0.00013698,2]
[424090556,1780588246000,-217.33396045,0.00013698,2]
[424090560,1780588246000,-500.0,0.00013698,2]
[424090554,1780588246000,-508.61,0.00013698,2]
[424090562,1780588246000,-500.0,0.00013698,2]
[424090552,1780588246000,-155.2700312,0.00013698,2]
[424090543,1780588246000,-805.12,0.00013698,2]
[424090564,1780588246000,-278.97174995,0.00013698,2]
[424090589,1780588246000,-222.98190173,0.00013698,2]
[424090550,1780588246000,-500.0,0.00013698,2]
[424090587,1780588246000,-506.81837746,0.00013698,2]
[424090576,1780588246000,-500.83224277,0.00013698,2]
[424090582,1780588246000,-3658.94,0.00013698,2]
[424090585,1780588246000,-574.62,0.00013698,2]
[424090578,1780588246000,-500.0,0.00013698,2]
[424090580,1780588246000,-500.0,0.00013698,2]
[424090572,1780588246000,-500.0,0.00013698,2]
[424090570,1780588246000,-500.0,0.00013698,2]
[424090568,1780588246000,-558.42902736,0.00013698,2]
[424090566,1780588246000,-500.0,0.00013698,2]
[424090574,1780588246000,-500.0,0.00013698,2]
[424090712,1780588247000,-356.63638619,0.00013698,2]
[424090704,1780588247000,-500.0,0.00013698,2]
[424090732,1780588247000,-500.0,0.00013698,2]
[424090700,1780588247000,-500.0,0.00013698,2]
[424090708,1780588247000,-500.0,0.00013698,2]
[424090716,1780588247000,-600.01607674,0.00013698,2]
[424090726,1780588247000,-500.0,0.00013698,2]
[424090729,1780588247000,-548.95040604,0.00013698,2]
[424090723,1780588247000,-500.0,0.00013698,2]
[424090746,1780588247000,-152.27590531,0.00013698,2]
[424090737,1780588247000,-500.0,0.00013698,2]
[424090735,1780588247000,-500.0,0.00013698,2]
[424090740,1780588247000,-500.0,0.00013698,2]
[424090743,1780588247000,-500.0,0.00013698,2]
[424090750,1780588247000,-500.0,0.00013698,2]
[424090764,1780588247000,-500.0,0.00013698,2]
[424090767,1780588247000,-503.39582337,0.00013698,2]
[424090697,1780588247000,-500.0,0.00013698,2]
[424090754,1780588247000,-1008.37,0.00013698,2]
[424090720,1780588247000,-1057.99,0.00013698,2]
[424090682,1780588247000,-500.0,0.00013698,2]
[424090661,1780588247000,-500.0,0.00013698,2]
[424090693,1780588247000,-500.0,0.00013698,2]
[424090757,1780588247000,-507.63202701,0.00013698,2]
[424090653,1780588247000,-500.0,0.00013698,2]
[424090655,1780588247000,-500.0,0.00013698,2]
[424090668,1780588247000,-500.0,0.00013698,2]
[424090659,1780588247000,-500.0,0.00013698,2]
[424090657,1780588247000,-741.7,0.00013698,2]
[424090664,1780588247000,-631.45,0.00013698,2]
[424090672,1780588247000,-194.22421446,0.00013698,2]
[424090670,1780588247000,-500.0,0.00013698,2]
[424090663,1780588247000,-566.83,0.00013698,2]
[424090666,1780588247000,-500.0,0.00013698,2]
[424090688,1780588247000,-681.01,0.00013698,2]
[424090686,1780588247000,-500.0,0.00013698,2]
[424090680,1780588247000,-500.0,0.00013698,2]
[424090684,1780588247000,-500.0,0.00013698,2]
[424090690,1780588247000,-500.0,0.00013698,2]
[424090676,1780588247000,-583.87230109,0.00013698,2]
[424090678,1780588247000,-1140.84,0.00013698,2]
[424090674,1780588247000,-500.0,0.00013698,2]
[424090691,1780588247000,-500.0,0.00013698,2]
[424090770,1780588247000,-500.0,0.00013698,2]
[424090761,1780588247000,-500.0,0.00013698,2]
[424090853,1780588247000,-500.0,0.00013698,2]
[424090817,1780588247000,-500.0,0.00013698,2]
[424090822,1780588247000,-3620.59,0.00013698,2]
[424090836,1780588247000,-625.81,0.00013698,2]
[424090830,1780588247000,-500.0,0.00013698,2]
[424090832,1780588247000,-811.61,0.00013698,2]
[424090840,1780588247000,-500.0,0.00013698,2]
[424090834,1780588247000,-500.0,0.00013698,2]
[424090845,1780588247000,-500.0,0.00013698,2]
[424090847,1780588247000,-500.0,0.00013698,2]
[424090843,1780588247000,-500.0,0.00013698,2]
[424090849,1780588247000,-500.0,0.00013698,2]
[424090851,1780588247000,-500.0,0.00013698,2]
[424090855,1780588247000,-500.0,0.00013698,2]
[424090861,1780588247000,-500.0,0.00013698,2]
[424090856,1780588247000,-365.15440546,0.00013698,2]
[424090859,1780588247000,-500.0,0.00013698,2]
[424090863,1780588247000,-500.0,0.00013698,2]
[424090865,1780588247000,-500.0,0.00013698,2]
[424090773,1780588247000,-500.0,0.00013698,2]
[424090828,1780588247000,-500.0,0.00013698,2]
[424090824,1780588247000,-500.80550408,0.00013698,2]
[424090838,1780588247000,-500.0,0.00013698,2]
[424090821,1780588247000,-500.0,0.00013698,2]
[424090776,1780588247000,-500.0,0.00013698,2]
[424090779,1780588247000,-500.0,0.00013698,2]
[424090781,1780588247000,-500.0,0.00013698,2]
[424090789,1780588247000,-551.16,0.00013698,2]
[424090786,1780588247000,-531.29,0.00013698,2]
[424090826,1780588247000,-500.0,0.00013698,2]
[424090784,1780588247000,-500.0,0.00013698,2]
[424090793,1780588247000,-13408.51,0.00013698,2]
[424090797,1780588247000,-500.0,0.00013698,2]
[424090813,1780588247000,-1689.19,0.00013698,2]
[424090791,1780588247000,-500.0,0.00013698,2]
[424090815,1780588247000,-368.7897692,0.00013698,2]
[424090799,1780588247000,-2355.67,0.00013698,2]
[424090809,1780588247000,-2641.24,0.00013698,2]
[424090811,1780588247000,-500.0,0.00013698,2]
[424090795,1780588247000,-500.0,0.00013698,2]
[424090803,1780588247000,-500.0,0.00013698,2]
[424090805,1780588247000,-500.0,0.00013698,2]
[424090801,1780588247000,-500.0,0.00013698,2]
[424090807,1780588247000,-500.0,0.00013698,2]
[424090819,1780588247000,-500.0,0.00013698,2]
[424090965,1780588248000,-500.0,0.00013969,2]
[424090954,1780588248000,-824.0,0.00013882,2]
[424090952,1780588248000,-350.0,0.00013848,2]
[424090950,1780588248000,-343.97,0.0001381,2]
[424090948,1780588248000,-341.18,0.00013791,2]
[424090928,1780588248000,-151.0,0.00013699,2]
[424090942,1780588248000,-621.83466269,0.00013699,2]
[424090944,1780588248000,-887.0,0.000137,20]
[424090940,1780588248000,-151.0,0.00013699,2]
[424090938,1780588248000,-151.0,0.00013699,2]
[424090969,1780588248000,-500.0,0.00013971,2]
[424090934,1780588248000,-151.0,0.00013699,2]
[424090946,1780588248000,-616.57628803,0.00013707,2]
[424090967,1780588248000,-500.0,0.00013971,2]
[424090988,1780588248000,-239.76143734,0.00013972,2]
[424090958,1780588248000,-357.73,0.00013899,2]
[424090961,1780588248000,-151.0,0.000139,2]
[424090963,1780588248000,-382.66,0.00013963,2]
[424090982,1780588248000,-500.0,0.00013972,2]
[424090971,1780588248000,-500.0,0.00013971,2]
[424090973,1780588248000,-281.80322052,0.00013971,2]
[424090975,1780588248000,-600.0978,0.00013972,2]
[424090984,1780588248000,-500.0,0.00013972,2]
[424090977,1780588248000,-590.2685,0.00013972,2]
[424090986,1780588248000,-500.0,0.00013972,2]